bitfinex/quotes_ETHUSD_20260126
["timestamp","ask_amount","ask_price","bid_price","bid_amount"]
[1769385601762,3.4536037,2817.4,2816.3,0.002]
[1769385604689,3.4536037,2817.4,2815.2,2.43064392]
[1769385604690,3.32693906,2817.2,2815.0,2.43264392]
[1769385604998,3.32693906,2817.2,2815.1,2.42191842]
[1769385605366,3.32693906,2817.0,2815.1,3.30998633]
[1769385605607,4.06993906,2817.0,2815.4,2.42191842]
[1769385605777,4.21436696,2817.2,2815.5,2.66231026]
[1769385605977,3.32693906,2817.1,2815.7,2.40733302]
[1769385606276,3.32693906,2817.1,2815.8,2.4428469]
[1769385606476,3.32693906,2817.1,2815.8,2.40733302]
[1769385606679,3.32693906,2817.1,2815.4,0.002]
[1769385606892,3.32693906,2816.9,2815.4,0.002]
[1769385608100,1.30890563,2817.0,2815.4,0.002]
[1769385608101,3.32693906,2816.5,2815.4,0.002]
[1769385608298,3.32693906,2816.5,2815.1,0.002]
[1769385608299,4.06993906,2816.5,2815.1,0.002]
[1769385608802,3.32693906,2816.3,2815.1,0.002]
[1769385608979,3.32693906,2816.6,2815.3,2.37447956]
[1769385609186,4.21444469,2816.9,2815.4,2.64544645]
[1769385609506,3.32693906,2817.4,2815.4,2.64544645]
[1769385609871,3.32693906,2817.4,2815.6,2.36051246]
[1769385610069,0.88828099,2817.6,2816.0,2.36051246]
[1769385610281,0.001,2816.9,2815.7,0.03551514]
[1769385610496,0.001,2816.9,2815.6,2.36251246]
[1769385610497,0.001,2816.9,2815.8,0.23980276]
[1769385610899,3.32793906,2816.9,2815.8,0.23980276]
[1769385611203,3.32793906,2816.9,2815.8,1.12763276]
[1769385611399,3.32793906,2816.9,2815.8,0.23980276]
[1769385611610,3.32793906,2816.9,2815.8,1.12764785]
[1769385611908,3.66073297,2816.9,2815.9,0.46791254]
[1769385612106,3.66073297,2816.9,2815.9,0.50342516]
[1769385612278,3.66073297,2816.9,2815.9,0.03551262]
[1769385613187,3.66073297,2816.9,2815.8,1.12763192]
[1769385613503,3.66073297,2816.9,2815.6,0.0375164]
[1769385613504,3.32693906,2816.8,2815.6,0.002]
[1769385613705,3.32693906,2816.8,2815.6,0.88989236]
[1769385614014,3.32693906,2816.8,2815.6,0.002]
[1769385614484,3.32693906,2816.8,2815.7,0.88787529]
[1769385614990,3.32693906,2816.8,2815.4,0.002]
[1769385614991,3.32693906,2816.6,2815.4,0.002]
[1769385616288,3.42705885,2816.6,2815.3,0.002]
[1769385616619,3.32693906,2816.6,2815.3,0.002]
[1769385617121,3.39040591,2816.4,2815.3,0.002]
[1769385617606,3.39040591,2816.4,2815.1,0.002]
[1769385617811,3.39040591,2816.2,2815.1,0.002]
[1769385618607,3.39040591,2816.2,2814.3,0.002]
[1769385619145,3.39040591,2816.0,2814.3,0.002]
[1769385619316,3.39040591,2815.8,2814.3,0.002]
[1769385619489,3.39040591,2815.8,2814.3,2.25608563]
[1769385619835,3.39040591,2815.6,2814.4,0.22580856]
[1769385619992,3.39040591,2815.6,2814.3,0.002]
[1769385620517,0.33904059,2815.7,2814.3,2.28109928]
[1769385620719,3.7294465,2815.7,2814.3,0.03753281]
[1769385621023,3.7294465,2815.7,2814.3,2.23516645]
[1769385621219,0.33904059,2815.7,2814.5,2.23316645]
[1769385621523,4.27821295,2816.0,2814.6,0.31214553]
[1769385621692,3.39040591,2816.0,2814.6,2.23316645]
[1769385622522,4.27809543,2816.3,2815.3,0.002]
[1769385622724,3.39040591,2816.2,2815.3,0.002]
[1769385623027,3.39040591,2816.5,2815.3,0.002]
[1769385623197,4.27803735,2816.5,2815.3,0.002]
[1769385623518,4.21873009,2816.5,2815.3,0.002]
[1769385623718,4.21873009,2816.5,2815.3,0.03752019]
[1769385623892,5.10635727,2816.5,2815.3,0.002]
[1769385624731,0.45482355,2816.7,2815.3,2.24021459]
[1769385624915,4.27794021,2816.8,2815.3,2.24021459]
[1769385625120,3.39040591,2816.7,2815.4,0.88797328]
[1769385625439,0.001,2816.9,2815.5,2.19276844]
[1769385625636,3.39140591,2816.9,2815.5,2.19276844]
[1769385625930,3.39040591,2816.8,2815.6,0.30807417]
[1769385627436,3.39040591,2816.8,2815.7,0.88787868]
[1769385628507,3.39040591,2816.7,2815.3,3.58944246]
[1769385628710,3.39040591,2816.7,2815.3,0.88997943]
[1769385628955,3.39040591,2816.7,2815.5,0.88792484]
[1769385629189,3.39040591,2816.5,2815.5,0.88792484]
[1769385630338,3.39040591,2816.5,2815.3,3.55398794]
[1769385630339,3.39040591,2816.5,2815.3,0.002]
[1769385631562,3.39040591,2816.5,2815.3,0.03752019]
[1769385632150,0.001,2816.9,2815.6,2.12633967]
[1769385632351,3.39140591,2816.9,2815.7,0.30142814]
[1769385632726,3.39140591,2816.9,2815.5,0.88794175]
[1769385633634,3.39140591,2816.9,2815.3,0.002]
[1769385633847,3.10582605,2816.5,2815.3,0.002]
[1769385634024,3.10582605,2816.3,2815.3,0.002]
[1769385634338,3.10582605,2816.1,2815.3,0.002]
[1769385634504,0.88772104,2816.2,2815.3,0.002]
[1769385634505,3.10582605,2815.9,2815.3,0.002]
[1769385635541,0.39935471,2816.0,2815.3,0.002]
[1769385635736,3.10582605,2816.2,2815.3,0.002]
[1769385636145,3.10582605,2816.5,2815.4,0.88797328]
[1769385636350,3.10582605,2816.5,2815.5,0.03551767]
[1769385636646,3.99345972,2816.5,2815.3,0.88998429]
[1769385636811,3.10582605,2816.5,2815.3,0.88998429]
[1769385637012,0.39934323,2816.4,2815.4,0.44420399]
[1769385637210,3.50516928,2816.4,2815.4,0.44420399]
[1769385637442,3.50516928,2816.4,2815.3,0.002]
[1769385638143,0.88768952,2816.3,2815.3,0.002]
[1769385638343,0.39934323,2816.4,2815.3,2.06708117]
[1769385638518,0.001,2816.7,2815.3,2.06708117]
[1769385638713,0.001,2816.7,2815.5,2.06508117]
[1769385638942,0.001,2816.7,2815.6,0.0355164]
[1769385639546,0.88856672,2816.7,2815.3,0.002]
[1769385639765,0.88856672,2816.7,2815.3,0.03752019]
[1769385639766,3.10582605,2816.6,2815.3,0.03752019]
[1769385640048,3.50526533,2816.6,2815.4,0.20942285]
[1769385640213,3.50526533,2816.6,2815.5,0.88794175]
[1769385640614,3.10582605,2816.5,2815.5,0.88794175]
[1769385640819,3.10582605,2816.4,2815.3,0.002]
[1769385641927,3.10582605,2816.4,2815.0,0.002]
[1769385642129,1.3871551,2816.6,2815.0,0.002]
[1769385642130,3.10582605,2816.2,2815.0,0.002]
[1769385642460,3.10582605,2816.0,2815.0,0.002]
[1769385644450,0.88781561,2815.9,2815.0,0.002]
[1769385644640,3.10582605,2816.0,2815.0,0.002]
[1769385645049,3.10582605,2815.9,2815.0,0.002]
[1769385647052,3.10582605,2815.7,2815.0,0.002]
[1769385649130,3.10582605,2815.5,2815.0,0.002]
[1769385650461,3.09714727,2815.5,2815.0,0.002]
[1769385651264,3.09714727,2815.5,2814.5,0.002]
[1769385651265,3.10582605,2815.3,2814.5,0.002]
[1769385653172,3.10582605,2815.3,2814.2,0.002]
[1769385653173,3.10582605,2814.9,2814.2,0.002]
[1769385655167,3.10582605,2814.7,2814.2,0.002]
[1769385656388,3.10582605,2814.7,2813.4,0.002]
[1769385656550,3.10582605,2814.5,2813.4,0.002]
[1769385657244,3.10582605,2814.3,2813.4,0.002]
[1769385657867,0.8882888,2814.4,2813.1,1.39199016]
[1769385657868,3.10582605,2814.1,2813.1,1.39199016]
[1769385658971,3.10582605,2813.9,2811.9,3.10638291]
[1769385659173,3.10582605,2813.5,2812.0,6.66256218]
[1769385659391,3.99443058,2813.4,2812.1,3.77263913]
[1769385659595,3.10582605,2813.3,2812.1,3.77263913]
[1769385659881,3.10582605,2813.3,2812.1,0.66625622]
[1769385660083,3.10582605,2813.3,2811.8,3.10638291]
[1769385660461,3.10582605,2813.3,2812.0,0.88904368]
[1769385660685,3.10582605,2813.3,2811.9,3.55629717]
[1769385660686,3.10582605,2813.3,2811.8,3.99546559]
[1769385660894,3.10582605,2812.9,2811.4,0.002]
[1769385661056,0.31058261,2812.8,2811.9,0.8890519]
[1769385661254,3.23382605,2813.3,2812.0,3.10638291]
[1769385661255,3.10582605,2813.3,2812.0,3.10638291]
[1769385661774,3.99446291,2813.3,2812.0,3.10638291]
[1769385661979,0.128,2813.7,2812.0,3.10638291]
[1769385661980,3.10582605,2813.6,2812.0,3.10638291]
[1769385662358,3.10582605,2813.6,2811.9,0.88907855]
[1769385663057,3.10582605,2814.0,2812.0,3.10638291]
[1769385663294,3.47162024,2813.9,2812.2,3.18938582]
[1769385663657,4.36007261,2813.9,2812.4,3.18938582]
[1769385664087,1.36227332,2813.9,2812.4,3.18938582]
[1769385664291,2.99779929,2813.8,2812.4,3.18938582]
[1769385665472,2.99779929,2813.8,2812.3,0.8889521]
[1769385665795,2.99779929,2813.6,2812.3,1.69234348]
[1769385666368,2.99779929,2813.6,2811.8,3.18938582]
[1769385666677,2.99779929,2813.6,2811.9,0.88905944]
[1769385666887,2.99779929,2813.6,2811.8,6.74581856]
[1769385666888,2.99779929,2813.6,2811.8,0.88909095]
[1769385667091,2.99779929,2813.6,2811.7,3.18938582]
[1769385667396,2.99779929,2813.6,2811.4,0.002]
[1769385667397,2.99779929,2813.6,2812.3,4.07833574]
[1769385667599,0.34338066,2813.5,2812.4,0.76341529]
[1769385667763,2.99779929,2813.4,2812.2,0.88896069]
[1769385668099,2.99779929,2813.4,2812.0,0.88015042]
[1769385668596,2.99779929,2813.4,2811.8,0.88908895]
[1769385668895,2.99779929,2813.4,2812.4,0.88891703]
[1769385669194,2.99779929,2813.4,2812.3,0.88894282]
[1769385669491,0.42297672,2813.3,2812.3,0.88894282]
[1769385669695,0.42297672,2813.3,2812.1,3.55602988]
[1769385669696,0.42297672,2813.3,2812.0,0.88904694]
[1769385669872,0.42297672,2813.3,2812.0,4.07843276]
[1769385670076,0.18325284,2814.2,2812.1,3.18938582]
[1769385670281,0.18325284,2814.2,2812.3,3.18938582]
[1769385670282,2.99779929,2814.2,2812.3,3.18938582]
[1769385670481,2.99779929,2814.2,2812.5,3.18938582]
[1769385670784,2.99779929,2814.2,2812.7,3.18938582]
[1769385671180,0.88830778,2814.4,2812.7,3.18938582]
[1769385671582,2.99779929,2814.5,2812.9,3.18938582]
[1769385671780,0.3555,2815.4,2813.1,3.18938582]
[1769385671781,0.29977993,2814.4,2813.1,3.18938582]
[1769385671969,3.5533892,2815.1,2813.5,3.18938582]
[1769385671970,0.001,2815.1,2813.5,3.18938582]
[1769385672177,0.001,2815.1,2813.2,3.64583222]
[1769385672178,2.99779929,2815.0,2813.2,3.64583222]
[1769385672474,2.99779929,2815.0,2813.2,3.18938582]
[1769385672670,2.99779929,2815.0,2813.0,0.40781799]
[1769385672875,2.99779929,2814.8,2813.0,0.40781799]
[1769385673074,2.99779929,2814.6,2813.0,0.40781799]
[1769385673800,2.99779929,2814.4,2813.0,1.2965281]
[1769385674099,0.30979191,2814.7,2813.1,3.18938582]
[1769385674307,0.001,2815.1,2813.1,3.18938582]
[1769385674473,0.88906909,2815.1,2813.1,3.18938582]
[1769385674787,0.88908515,2815.1,2813.1,3.18938582]
[1769385674989,3.88688444,2815.1,2813.1,3.18938582]
[1769385675394,3.88687142,2815.1,2813.1,3.18938582]
[1769385675710,0.38868714,2815.0,2813.4,0.88860453]
[1769385676309,4.55689391,2815.0,2813.4,0.88860453]
[1769385677008,3.28010557,2814.9,2813.4,0.88860453]
[1769385677213,3.28010557,2814.9,2813.2,0.88864712]
[1769385677510,3.28010557,2814.7,2813.0,0.40781799]
[1769385677714,3.28010557,2814.3,2812.6,3.55534577]
[1769385678877,3.28010557,2814.1,2812.1,3.03616959]
[1769385679195,3.28010557,2814.1,2812.4,0.88891719]
[1769385679396,3.28010557,2814.1,2812.4,0.88889983]
[1769385679579,3.28010557,2814.1,2812.5,0.88888591]
[1769385679780,3.28010557,2813.9,2812.0,3.03816959]
[1769385679984,3.2712249,2813.3,2812.0,0.002]
[1769385681504,3.2712249,2813.3,2812.1,0.88900124]
[1769385681809,4.15986392,2813.3,2812.0,0.002]
[1769385682011,0.77144007,2813.2,2812.0,0.002]
[1769385682409,4.15986971,2813.3,2812.0,0.002]
[1769385682605,4.15986442,2813.3,2812.0,0.002]
[1769385683000,3.28010557,2813.2,2812.0,0.002]
[1769385684016,3.28010557,2813.1,2812.0,0.002]
[1769385685818,4.16882849,2813.1,2812.0,0.002]
[1769385686024,0.65388285,2813.0,2812.0,0.002]
[1769385686391,3.28010557,2813.5,2812.0,0.002]
[1769385686392,6.53868095,2813.5,2812.0,0.002]
[1769385686611,5.65010557,2813.5,2812.0,0.002]
[1769385687199,2.37,2813.5,2812.0,3.03816959]
[1769385687526,4.16855743,2813.9,2812.0,3.03816959]
[1769385687707,4.16855743,2813.9,2812.2,3.03616959]
[1769385687896,0.4637368,2813.8,2812.3,0.39251849]
[1769385688431,3.74384237,2813.8,2812.3,0.39251849]
[1769385688723,3.74384237,2813.8,2812.1,0.88901532]
[1769385690243,3.28010557,2813.6,2812.0,3.59362317]
[1769385691426,3.28010557,2813.6,2812.0,6.62979276]
[1769385691626,3.28010557,2813.6,2812.0,6.59423089]
[1769385691827,3.28010557,2813.6,2812.1,0.01492337]
[1769385692135,3.74333788,2813.6,2812.2,0.66091543]
[1769385692441,3.74333788,2813.6,2812.3,0.8889521]
[1769385693013,4.63188565,2813.6,2812.3,0.8889521]
[1769385693212,3.74333788,2813.6,2812.3,0.8889521]
[1769385693942,3.01870683,2813.5,2812.3,0.8889521]
[1769385694241,3.01870683,2813.5,2812.4,0.51076759]
[1769385694446,0.46423231,2813.6,2812.4,0.51076759]
[1769385694447,0.001,2813.6,2812.6,3.27595168]
[1769385695552,0.001,2814.1,2812.6,4.01995168]
[1769385695843,0.001,2814.1,2812.8,3.27595168]
[1769385696045,0.001,2814.1,2813.0,3.27595168]
[1769385696449,0.001,2814.1,2813.1,0.88869929]
[1769385696862,0.001,2814.1,2813.1,4.16465097]
[1769385697064,0.001,2814.1,2813.2,3.27595168]
[1769385698060,3.01970683,2815.1,2813.2,3.27595168]
[1769385698367,3.40948335,2815.0,2813.4,3.27595168]
[1769385698569,3.40948335,2815.0,2813.5,0.88857295]
[1769385699289,0.001,2815.1,2813.6,4.01995168]
[1769385700579,0.001,2815.1,2813.8,3.27595168]
[1769385702569,0.001,2815.1,2814.0,3.27595168]
[1769385702972,3.01870683,2815.8,2814.2,3.27595168]
[1769385703179,3.01870683,2816.2,2814.2,3.27595168]
[1769385703376,0.001,2816.3,2814.7,3.27595168]
[1769385703669,0.001,2816.3,2814.9,3.27595168]
[1769385703872,3.01870683,2816.2,2814.3,1.32759517]
[1769385704200,3.01870683,2816.2,2814.0,4.01995168]
[1769385704553,3.01870683,2816.0,2814.1,0.88838349]
[1769385704860,3.01870683,2815.8,2813.9,0.88843996]
[1769385705167,0.98787235,2816.1,2814.0,0.8884109]
[1769385705168,3.01870683,2815.6,2814.0,0.8884109]
[1769385706649,3.01870683,2815.6,2813.9,6.82971372]
[1769385706870,3.4093649,2815.6,2814.0,1.073874]
[1769385707858,0.39065807,2815.6,2814.1,3.27595168]
[1769385708090,3.9065944,2815.7,2814.2,0.03553407]
[1769385708893,3.9065944,2815.7,2814.3,0.88832036]
[1769385709187,3.01870683,2815.6,2814.4,0.03553154]
[1769385709388,3.90749599,2816.0,2814.4,0.03553154]
[1769385709604,0.3907496,2815.9,2814.4,0.03553154]
[1769385710763,0.3907496,2815.9,2814.5,0.744]
[1769385710964,0.3907496,2815.9,2814.7,0.88819412]
[1769385712596,1.27856528,2815.9,2814.7,0.88819412]
[1769385712795,0.3907496,2815.9,2814.7,0.88819412]
[1769385713013,0.4298261,2815.8,2814.7,1.40670361]
[1769385713664,0.001,2816.0,2814.8,3.27595168]
[1769385714105,0.001,2816.0,2815.0,3.27595168]
[1769385714411,0.001,2816.3,2815.0,3.27595168]
[1769385715076,0.001,2816.3,2815.1,0.92359062]
[1769385715276,0.001,2816.3,2815.2,0.7751814]
[1769385715479,3.01970683,2816.3,2815.2,0.7751814]
[1769385715680,3.01970683,2816.3,2815.0,0.88809008]
[1769385716968,0.88772104,2816.2,2814.7,0.88819412]
[1769385717180,3.01870683,2816.1,2814.7,0.88819412]
[1769385718812,3.01870683,2816.1,2814.9,0.002]
[1769385719094,3.01870683,2815.7,2814.9,0.002]
[1769385719841,0.128,2815.6,2813.5,0.002]
[1769385719984,3.01870683,2815.1,2813.5,0.002]
[1769385720604,3.01870683,2814.9,2813.5,0.002]
[1769385720810,3.01870683,2814.7,2813.5,0.002]
[1769385721287,3.01870683,2814.5,2813.5,0.002]
[1769385723515,4.12389663,2814.4,2813.5,0.002]
[1769385723717,3.23560783,2814.3,2813.5,0.002]
[1769385724625,3.23560783,2814.3,2813.3,0.002]
[1769385724784,3.23560783,2814.1,2813.3,0.002]
[1769385725818,4.12402289,2814.0,2813.3,0.002]
[1769385726210,3.23560783,2814.0,2813.3,0.002]
[1769385726391,3.23560783,2814.0,2813.0,0.002]
[1769385727900,3.23560783,2813.8,2813.0,0.002]
[1769385728218,0.88840689,2814.1,2813.0,0.002]
[1769385728810,4.12401472,2814.1,2813.0,0.002]
[1769385729419,3.23560783,2814.0,2813.0,0.002]
[1769385729822,1.30075615,2814.2,2813.0,0.002]
[1769385730322,3.23560783,2814.1,2813.0,0.002]
[1769385730522,0.4536364,2814.0,2813.0,0.002]
[1769385730890,0.4536364,2814.0,2813.2,0.002]
[1769385731090,0.001,2813.8,2813.2,0.002]
[1769385735047,3.23560783,2814.9,2813.2,2.98879179]
[1769385735245,4.12375509,2814.9,2813.2,2.98879179]
[1769385735461,3.23560783,2814.9,2813.2,2.98879179]
[1769385735771,3.23560783,2814.9,2813.3,2.98679179]
[1769385736062,4.06191513,2814.8,2813.4,0.88860453]
[1769385736234,0.76144037,2814.8,2813.5,0.74298145]
[1769385736435,3.17373749,2815.2,2813.5,3.75448251]
[1769385736670,4.06177522,2815.2,2813.5,3.75448251]
[1769385737236,3.17373749,2815.2,2813.5,3.75448251]
[1769385737442,4.06178344,2815.2,2813.5,3.75448251]
[1769385737642,3.57991583,2815.2,2813.6,1.4643087]
[1769385738050,3.57991583,2815.2,2813.6,4.47580976]
[1769385738271,3.17373749,2815.1,2813.7,0.88850979]
[1769385738590,3.17373749,2815.1,2813.7,3.90001085]
[1769385738978,3.17373749,2815.1,2813.7,0.88850979]
[1769385739185,3.17373749,2814.9,2813.6,0.88852226]
[1769385740185,3.17373749,2814.8,2813.6,0.88852226]
[1769385741762,3.17373749,2814.4,2813.2,0.002]
[1769385742278,3.17373749,2814.2,2813.2,0.002]
[1769385742577,3.57994328,2814.1,2813.2,0.002]
[1769385744295,4.06215255,2814.0,2813.2,0.002]
[1769385744892,3.17373749,2813.9,2813.2,0.002]
[1769385746910,4.06218798,2813.9,2813.2,0.002]
[1769385747089,3.17373749,2813.9,2813.2,0.002]
[1769385747300,0.40621696,2813.8,2813.2,0.002]
[1769385747676,0.40620579,2814.1,2813.2,0.002]
[1769385748602,3.17373749,2814.0,2813.2,0.002]
[1769385750673,4.0621546,2814.0,2813.2,0.002]
[1769385750969,3.17373749,2814.0,2813.2,0.002]
[1769385751668,0.40620579,2814.1,2813.2,0.002]
[1769385751899,0.88835238,2814.2,2813.2,0.002]
[1769385752201,4.06207878,2814.3,2813.2,0.002]
[1769385753284,3.17373749,2814.3,2813.2,0.002]
[1769385753716,3.25824764,2814.6,2813.2,3.19085593]
[1769385754212,2.37,2814.6,2813.2,3.19085593]
[1769385754385,0.55695564,2814.5,2813.3,0.33079626]
[1769385754997,0.88809041,2815.1,2813.4,4.07946046]
[1769385755201,0.001,2815.0,2813.5,3.18885593]
[1769385757028,0.001,2815.0,2813.6,0.88854137]
[1769385757331,0.001,2815.0,2813.7,3.18885593]
[1769385759045,3.20055635,2816.1,2814.1,3.18885593]
[1769385759199,3.87470092,2816.0,2814.3,3.18885593]
[1769385760121,3.19955635,2816.0,2814.3,3.93285593]
[1769385760333,0.001,2816.1,2814.3,3.93285593]
[1769385760493,0.001,2816.1,2814.5,3.18885593]
[1769385760695,0.001,2816.1,2814.8,3.18885593]
[1769385761097,0.001,2816.1,2814.9,4.07698694]
[1769385761341,0.001,2816.1,2815.0,0.7629511]
[1769385762338,0.001,2816.1,2815.0,3.95180703]
[1769385763138,0.001,2816.1,2815.1,0.88806791]
[1769385763297,3.20055635,2816.1,2815.0,1.65103054]
[1769385763497,3.20055635,2816.1,2815.0,0.88807944]
[1769385764821,0.001,2816.1,2815.0,4.07693537]
[1769385766925,0.001,2816.1,2815.1,3.18885593]
[1769385767113,0.001,2816.3,2815.3,3.18885593]
[1769385767318,0.001,2816.3,2815.4,4.07682921]
[1769385767515,0.001,2815.9,2815.4,4.07682921]
[1769385769726,0.001,2815.9,2815.4,0.88796989]
[1769385770210,0.001,2816.3,2815.4,4.07682582]
[1769385770412,0.001,2816.3,2815.5,0.76288024]
[1769385771218,0.001,2816.7,2815.6,0.88791021]
[1769385771620,0.001,2816.7,2815.7,0.744]
[1769385773433,0.001,2816.7,2815.8,4.07670307]
[1769385773633,0.001,2816.9,2815.9,3.18885593]
[1769385773808,0.001,2816.9,2816.0,0.40767031]
[1769385775437,0.001,2816.9,2816.1,0.88775256]
[1769385777133,0.001,2816.9,2816.0,1.29544206]
[1769385777344,3.20055635,2816.9,2816.1,0.744]
[1769385777638,3.20055635,2816.9,2816.2,0.88772104]
[1769385777841,3.20055635,2816.9,2816.2,1.44676044]
[1769385778440,0.001,2816.9,2816.2,1.44676044]
[1769385778837,0.001,2816.9,2816.2,0.5590394]
[1769385779008,0.001,2816.9,2816.1,1.63173016]
[1769385779463,3.20055635,2816.9,2816.1,1.63175085]
[1769385779755,0.001,2816.7,2816.1,1.63175085]
[1769385780036,0.001,2816.7,2816.1,0.88775085]
[1769385780539,0.001,2816.7,2816.0,0.40767031]
[1769385780540,3.20055635,2816.7,2816.0,0.40767031]
[1769385780835,3.20055635,2816.7,2815.9,0.88980749]
[1769385781044,3.20055635,2816.7,2815.6,0.002]
[1769385781610,3.19955635,2816.5,2815.6,0.002]
[1769385782154,3.19955635,2816.5,2814.5,0.002]
[1769385782334,3.19955635,2816.3,2814.8,0.88814539]
[1769385782645,3.19955635,2816.3,2814.6,1.2437122]
[1769385782848,3.19955635,2816.3,2814.6,0.35550833]
[1769385783014,3.19955635,2816.1,2814.5,0.002]
[1769385783414,3.19955635,2816.1,2815.0,0.88809322]
[1769385783733,3.15825437,2816.4,2815.0,0.88809322]
[1769385784055,3.15825437,2816.4,2815.1,0.51834911]
[1769385784520,3.15925437,2816.7,2815.1,13.56905484]
[1769385784863,3.15925437,2816.7,2815.2,3.05070573]
[1769385785467,3.15925437,2816.7,2815.1,0.51834911]
[1769385785468,3.15825437,2816.6,2815.1,0.51834911]
[1769385785756,3.15825437,2816.4,2815.1,0.88806028]
[1769385786724,0.001,2816.7,2815.2,3.05070573]
[1769385787759,3.15925437,2816.7,2815.4,3.05070573]
[1769385788060,3.15925437,2816.7,2815.5,0.46827106]
[1769385788260,3.15925437,2816.7,2815.3,1.63200483]
[1769385788445,3.15925437,2816.7,2815.4,0.744]
[1769385788818,0.001,2817.6,2816.2,33.05070573]
[1769385789119,3.15925437,2817.6,2815.8,3.05070573]
[1769385789319,3.15925437,2817.6,2815.9,0.744]
[1769385789557,3.15825437,2817.4,2816.1,0.88775256]
[1769385789750,3.15825437,2817.4,2816.0,3.93048083]
[1769385789751,3.15825437,2817.3,2816.0,1.26723272]
[1769385790268,3.15825437,2817.3,2815.0,3.05070573]
[1769385790423,3.15825437,2817.3,2815.8,0.88783042]
[1769385790625,3.15825437,2817.3,2816.0,0.88775868]
[1769385791260,3.15825437,2817.3,2815.1,3.05070573]
[1769385791461,3.15825437,2817.3,2815.9,0.88779263]
[1769385791667,3.15825437,2817.0,2816.0,0.44390801]
[1769385791862,3.15825437,2817.0,2815.6,3.55161016]
[1769385792243,3.15825437,2817.0,2815.8,0.88784291]
[1769385792642,3.15825437,2817.0,2815.9,0.002]
[1769385793274,0.001,2817.1,2816.0,0.88776185]
[1769385793562,3.15925437,2817.1,2816.1,0.44408982]
[1769385793750,3.15825437,2817.0,2816.1,0.88774012]
[1769385793951,0.001,2817.1,2816.1,0.88774012]
[1769385794152,0.001,2817.1,2816.1,13.93844585]
[1769385794536,0.001,2817.6,2816.2,3.05070573]
[1769385794868,0.001,2817.6,2816.3,30.0]
[1769385795051,0.001,2817.6,2816.5,30.0]
[1769385795257,0.001,2817.6,2816.6,3.79370573]
[1769385795459,0.001,2818.3,2816.9,30.0]
[1769385795656,0.001,2818.3,2817.2,33.05070573]
[1769385795833,0.001,2818.3,2817.1,10.88743743]
[1769385796035,0.001,2818.3,2817.2,2.18671872]
[1769385796253,0.001,2818.3,2817.2,0.743]
[1769385796668,0.001,2818.3,2817.1,0.88743743]
[1769385798170,0.001,2818.3,2817.2,30.0]
[1769385799034,3.54619248,2820.0,2817.4,3.15596172]
[1769385799238,3.54619248,2820.0,2817.3,5.15660912]
[1769385799239,2.97971358,2819.8,2817.7,30.0]
[1769385799465,2.97971358,2819.8,2817.9,30.0]
[1769385799672,2.97971358,2819.6,2818.0,0.887154]
[1769385800035,2.97971358,2819.6,2818.1,0.743]
[1769385800568,2.97971358,2819.9,2818.1,3.89896172]
[1769385800770,2.97971358,2819.9,2818.1,0.743]
[1769385800937,2.97971358,2819.9,2818.2,0.743]
[1769385801132,2.97971358,2819.7,2818.0,0.887154]
[1769385801332,2.97971358,2819.7,2817.9,0.88716692]
[1769385801572,2.97971358,2819.3,2817.1,3.5496771]
[1769385801864,2.97971358,2819.1,2817.4,0.743]
[1769385802369,2.97971358,2819.1,2817.3,0.743]
[1769385802569,2.97971358,2818.9,2817.3,0.743]
[1769385802768,2.97971358,2819.4,2817.5,0.2335703]
[1769385802974,2.97971358,2819.3,2817.6,0.743]
[1769385803438,2.97971358,2819.3,2817.5,0.743]
[1769385803637,2.97971358,2819.1,2817.4,0.88734294]
[1769385803837,2.97971358,2818.9,2817.5,0.51798128]
[1769385804731,2.97971358,2818.9,2817.6,0.002]
[1769385804935,2.98071358,2818.9,2817.6,0.002]
[1769385805768,2.98071358,2818.9,2817.6,0.88927995]
[1769385807250,2.97971358,2818.8,2817.6,0.002]
[1769385807587,2.97971358,2818.6,2817.6,0.002]
[1769385807780,2.97971358,2818.5,2817.6,0.002]
[1769385808558,2.97971358,2818.5,2817.4,0.002]
[1769385810063,0.38675924,2818.7,2817.4,0.002]
[1769385810262,2.98071358,2818.9,2817.4,0.002]
[1769385810466,0.38675575,2818.8,2817.4,0.002]
[1769385811070,3.36646933,2818.8,2817.4,0.002]
[1769385813578,3.14909824,2818.7,2817.4,0.002]
[1769385813979,3.14909824,2818.5,2817.4,0.002]
[1769385814183,3.14909824,2818.5,2816.4,0.743]
[1769385814380,3.14909824,2818.3,2816.5,1.16306895]
[1769385815279,0.40360634,2818.4,2816.9,3.27008619]
[1769385815478,3.14909824,2818.6,2816.5,1.16306895]
[1769385815683,3.14909824,2818.6,2816.6,0.743]
[1769385816182,3.93449052,2818.8,2817.0,3.27008619]
[1769385816183,3.14909824,2818.5,2817.0,3.27008619]
[1769385816388,0.001,2818.9,2817.1,3.27008619]
[1769385816585,3.15009824,2818.9,2817.4,13.27008619]
[1769385816755,3.15009824,2818.9,2817.5,1.32700862]
[1769385816960,3.15009824,2818.9,2817.1,30.0]
[1769385817358,0.001,2818.9,2817.5,3.50365649]
[1769385817556,3.14909824,2819.7,2817.4,5.15660912]
[1769385817557,3.14909824,2819.7,2818.0,3.27008619]
[1769385817775,3.14909824,2819.6,2818.0,10.0]
[1769385818084,3.14909824,2819.6,2818.1,0.743]
[1769385818259,3.46400806,2819.5,2818.1,0.743]
[1769385818583,3.46400806,2819.5,2817.9,30.743]
[1769385818789,3.46400806,2819.5,2817.9,0.743]
[1769385819455,3.14909824,2819.5,2818.0,30.0]
[1769385820285,3.14909824,2819.5,2818.2,0.88709105]
[1769385820996,3.14909824,2820.0,2818.2,0.88709105]
[1769385821492,3.14909824,2820.0,2818.3,30.0]
[1769385822290,3.14909824,2820.0,2818.4,0.8870281]
[1769385822493,1.39199016,2820.1,2818.7,3.27008619]
[1769385822694,1.39199016,2820.1,2818.8,0.743]
[1769385823091,1.39199016,2820.1,2819.0,30.0]
[1769385824065,1.39199016,2820.1,2819.0,12.793]
[1769385824270,0.45410884,2820.0,2819.1,0.88680784]
[1769385824800,1.39199016,2820.1,2819.1,0.88680784]
[1769385825172,3.15209824,2820.7,2819.1,10.88680784]
[1769385825680,0.003,2820.7,2819.4,30.0]
[1769385825865,0.003,2820.7,2819.5,10.743]
[1769385826069,0.003,2820.7,2819.6,30.0]
[1769385826265,0.003,2820.7,2819.8,0.8865877]